lending/lending_fUSD_20250430
["ID","MTS","AMOUNT","RATE_DAILY","PERIOD"]
[359430818,1746008015355,1043.17,0.00037808,120]
[359430819,1746008015465,741.91,0.00037808,30]
[359430820,1746008015553,470.0,0.00037808,30]
[359430821,1746008015592,1043.24971476,0.00037808,120]
[359430822,1746008015703,741.91,0.00037808,30]
[359430823,1746008015791,470.0,0.00037808,30]
[359430824,1746008015940,742.00287883,0.00037808,30]
[359430825,1746008016070,470.0,0.00037808,30]
[359430826,1746008016105,470.0,0.00037808,30]
[359430827,1746008016182,503.66024099,0.00037808,30]
[359430828,1746008016312,306.7575829,0.00037808,30]
[359430829,1746008457105,157.0,0.0002945,44]
[359430830,1746008937124,1437.50449979,0.000328,60]
[359430831,1746008956442,1184.9,0.00017926,2]
[359430838,1746009031884,-269.445,0.000196,2]
[359430839,1746009031900,-397.27884556,0.000196,2]
[359430840,1746009031993,-577.64615444,0.000196,2]
[359430841,1746009032006,-174.093,0.000196,2]
[359430842,1746009032021,-250.0,0.00019618,2]
[359430843,1746009032035,-200.0,0.00019636,2]
[359430844,1746009032048,-33.16697068,0.00019763,2]
[359430863,1746009037935,-641.17075531,0.00019763,2]
[359430864,1746009038041,-80.86227401,0.00019763,2]
[359430865,1746009038050,-1200.0,0.00019778,2]
[359430866,1746009038060,-300.0,0.00019778,2]
[359430867,1746009038070,-337.59872415,0.00019779,2]
[359430868,1746009038082,-23562.40127585,0.00019779,2]
[359430869,1746009038095,-200.0,0.00019783,2]
[359430870,1746009038106,-501.87563173,0.00019873,2]
[359430871,1746009038117,-500.0,0.00019873,2]
[359430872,1746009038128,-525.28283184,0.00019873,2]
[359430873,1746009038138,-500.0,0.00019873,2]
[359430874,1746009038147,-359.56932661,0.00019873,2]
[359430875,1746009038157,-75.11181626,0.00019873,2]
[359430876,1746009038172,-424.88818374,0.00019873,2]
[359430877,1746009038181,-8007.5348309,0.00019886,2]
[359430878,1746009038200,-564.00639197,0.00019886,2]
[359430880,1746009038210,-930.59712969,0.00019886,2]
[359431083,1746009040105,-7827.77224744,0.00019886,2]
[359431086,1746009040116,-368.5922,0.00019886,2]
[359431087,1746009040125,-2500.0,0.00019886,2]
[359431089,1746009040135,-4159.4731,0.000199,2]
[359431091,1746009040144,-36233.4817,0.000199,2]
[359431093,1746009040153,-1000.0,0.000199,2]
[359431095,1746009040163,-5000.0,0.000199,2]
[359431097,1746009040172,-1000.0,0.00019934,2]
[359431099,1746009040182,-500.0,0.00019973,2]
[359431101,1746009040191,-500.0,0.00019973,2]
[359431103,1746009040200,-500.0,0.00019973,2]
[359431105,1746009040208,-522.44047793,0.00019973,2]
[359431107,1746009040217,-500.0,0.00019973,2]
[359431109,1746009040229,-501.88070055,0.00019973,2]
[359431111,1746009040241,-501.90942623,0.00019973,2]
[359431113,1746009040253,-629.19071202,0.00019973,2]
[359431115,1746009040264,-500.0,0.00019973,2]
[359431117,1746009040273,-500.0,0.00019973,2]
[359431119,1746009040283,-500.0,0.00019973,2]
[359431121,1746009040292,-500.0,0.00019973,2]
[359431123,1746009040301,-14124.6702176,0.00019986,2]
[359431125,1746009040309,-49642.075452,0.00019986,2]
[359431127,1746009040318,-41977.33944272,0.00019986,2]
[359431129,1746009040329,-25185.72746133,0.00019986,2]
[359431131,1746009040340,-1515.069001,0.00019986,2]
[359431133,1746009040351,-4762.15663909,0.00019986,2]
[359431136,1746009040362,-951.96964698,0.00019986,2]
[359431138,1746009040373,-273.352828,0.00019986,2]
[359431140,1746009040384,-863.19164342,0.00019986,2]
[359431147,1746009040481,-834.32733642,0.00019986,2]
[359431286,1746009043119,-40188.12449354,0.00019986,2]
[359431287,1746009043128,-5791.9921151,0.00019986,2]
[359431288,1746009043138,-9658.2226782,0.00019986,2]
[359431289,1746009043147,-1000.0,0.00019999,2]
[359431290,1746009043157,-1000.0,0.00019999,2]
[359431291,1746009043166,-1000.0,0.00019999,2]
[359431292,1746009043176,-1000.0,0.00019999,2]
[359431293,1746009043185,-1000.0,0.00019999,2]
[359431294,1746009043195,-1000.0,0.00019999,2]
[359431295,1746009043204,-1000.0,0.00019999,2]
[359431296,1746009043214,-709.0,0.00019999,2]
[359431297,1746009043224,-207.80914365,0.00019999,2]
[359431298,1746009043237,-500.0,0.00019999,2]
[359431299,1746009043247,-500.0,0.00019999,2]
[359431300,1746009043257,-500.0,0.00019999,2]
[359431301,1746009043267,-500.0,0.00019999,2]
[359431302,1746009043278,-500.0,0.00019999,2]
[359431304,1746009043287,-500.0,0.00019999,2]
[359431306,1746009043297,-500.0,0.00019999,2]
[359431308,1746009043306,-500.0,0.00019999,2]
[359431310,1746009043315,-500.0,0.00019999,2]
[359431312,1746009043324,-500.0,0.00019999,2]
[359431314,1746009043333,-500.0,0.00019999,2]
[359431316,1746009043342,-500.0,0.00019999,2]
[359431318,1746009043352,-500.0,0.00019999,2]
[359431320,1746009043361,-500.0,0.00019999,2]
[359431322,1746009043370,-292.53790208,0.00019999,2]
[359431323,1746009043379,-300.0,0.00019999,2]
[359431325,1746009043388,-214911.9751961,0.0002,2]
[359431330,1746009043427,-500.0,0.0002,2]
[359431553,1746009045857,-500.0,0.0002,2]
[359431554,1746009046173,-6067.49054432,0.0002,2]
[359431555,1746009046185,-8489.1,0.0002,2]
[359431556,1746009046280,-11874.4697873,0.0002,2]
[359431562,1746009163834,500.0,0.000154,2]
[359431563,1746009335222,1013.6224147,0.0001439,2]
[359431564,1746009335244,989.6933316,0.0001439,2]
[359431565,1746009347704,250.0,0.00017,2]
[359431566,1746009348754,300.0,0.00019,2]
[359431567,1746009654590,2016.639,0.00032877,60]
[359431568,1746009691348,632.0,0.00032877,60]
[359431569,1746009739466,150.0,0.00032876,60]
[359431571,1746009814058,169.97,0.00029359,120]
[359431572,1746009844449,3037.9993859,0.00032,60]
[359431573,1746009909021,171.51,0.00018746,2]
[359431574,1746009975422,1260.48,0.00016806,2]
[359431575,1746009975671,1260.48,0.0001907,2]
[359431578,1746010161996,250.0,0.00018702,2]
[359431585,1746010232131,-353.4328,0.00019505,2]
[359431586,1746010232140,-298.49,0.00019513,2]
[359431587,1746010232150,-200.0,0.00019514,2]
[359431588,1746010232159,-250.0,0.00019515,2]
[359431589,1746010232168,-298.49,0.00019518,2]
[359431590,1746010232177,-200.0,0.00019518,2]
[359431591,1746010232186,-187.77554452,0.00019523,2]
[359431592,1746010232195,-298.49,0.00019523,2]
[359431593,1746010232204,-298.49,0.00019528,2]
[359431594,1746010232213,-298.49,0.00019533,2]
[359431595,1746010232223,-298.49,0.00019538,2]
[359431596,1746010232232,-298.49,0.00019544,2]
[359431597,1746010232241,-298.49,0.00019549,2]
[359431598,1746010232251,-108.87801462,0.00019554,2]
[359431675,1746010238110,-189.61198538,0.00019554,2]
[359431676,1746010238119,-67.03437652,0.00019559,2]
[359431677,1746010238214,-231.45562348,0.00019559,2]
[359431678,1746010238223,-298.49,0.00019564,2]
[359431679,1746010238232,-298.49,0.00019569,2]
[359431680,1746010238242,-169.97,0.00019573,2]
[359431681,1746010238251,-298.49,0.00019574,2]
[359431682,1746010238260,-298.49,0.00019579,2]
[359431683,1746010238269,-298.49,0.00019585,2]
[359431684,1746010238278,-298.49,0.0001959,2]
[359431685,1746010238288,-298.49,0.00019595,2]
[359431686,1746010238297,-298.49,0.000196,2]
[359431687,1746010238306,-1200.0,0.00019605,2]
[359431688,1746010238316,-300.0,0.00019605,2]
[359431689,1746010238325,-300.0,0.00019605,2]
[359431690,1746010238334,-298.49,0.00019605,2]
[359431691,1746010238344,-298.49,0.0001961,2]
[359431692,1746010238353,-7593.44,0.00019638,2]
[359431693,1746010238363,-171.51,0.00019787,2]
[359431694,1746010238372,-500.0,0.00019873,2]
[359431695,1746010238381,-254.43392131,0.00019873,2]
[359431696,1746010238393,-245.56607869,0.00019873,2]
[359431697,1746010238402,-394.06054114,0.00019879,2]
[359431698,1746010238411,-6036.08683899,0.00019886,2]
[359431699,1746010238422,-21343.15576101,0.00019886,2]
[359431700,1746010238432,-1000.0,0.00019886,2]
[359431701,1746010238441,-10071.32414578,0.00019886,2]
[359431702,1746010238452,-49252.67557572,0.00019886,2]
[359431703,1746010238462,-2500.0,0.00019886,2]
[359431704,1746010238471,-1000.0,0.00019886,2]
[359431705,1746010238480,-17329.9106,0.00019899,2]
[359431706,1746010238490,-38750.06099498,0.000199,2]
[359431707,1746010238499,-166.80756493,0.000199,2]
[359431708,1746010238509,-1734.9486025,0.000199,3]
[359431709,1746010238518,-258.2741,0.000199,2]
[359431710,1746010238527,-686.03,0.00019942,2]
[359431711,1746010238535,-500.0,0.00019973,2]
[359431712,1746010238545,-500.0,0.00019973,2]
[359431713,1746010238554,-385.72840012,0.00019973,2]
[359431714,1746010238563,-500.0,0.00019973,2]
[359431715,1746010238572,-502.0928181,0.00019973,2]
[359431716,1746010238581,-500.0,0.00019973,2]
[359431717,1746010238590,-500.0,0.00019973,2]
[359431718,1746010238598,-6390.8273817,0.00019986,2]
[359431719,1746010238607,-75711.2344735,0.00019986,2]
[359431720,1746010238616,-2645.2549554,0.00019986,2]
[359431721,1746010238625,-322.76299079,0.00019999,2]
[359431722,1746010238634,-500.0,0.00019999,2]
[359431723,1746010238643,-500.0,0.00019999,2]
[359431724,1746010238652,-500.0,0.00019999,2]
[359431725,1746010238661,-500.0,0.00019999,2]
[359431726,1746010238670,-500.0,0.00019999,2]
[359431727,1746010238680,-500.0,0.00019999,2]
[359431728,1746010238689,-500.0,0.00019999,2]
[359431729,1746010238698,-500.0,0.00019999,2]
[359431730,1746010238707,-500.0,0.00019999,2]
[359431731,1746010238717,-500.0,0.00019999,2]
[359431732,1746010238726,-500.0,0.00019999,2]
[359431733,1746010238736,-500.0,0.00019999,2]
[359431734,1746010238745,-441.2094909,0.00019999,2]
[359431735,1746010238755,-500.0,0.00019999,2]
[359431736,1746010238764,-2025.0,0.0002,2]
[359431737,1746010238773,-96757.86398079,0.0002,2]
[359431738,1746010238786,-18994.16840535,0.0002,2]
[359431739,1746010238804,-901.47596624,0.0002,2]
[359431740,1746010238819,-941.57868834,0.0002,2]
[359431741,1746010238831,-577.6,0.0002,2]
[359431747,1746010242088,-883.021728,0.0002,2]
[359431748,1746010242114,-269.29337629,0.0002,2]
[359431756,1746010243542,-278.74380096,0.00019886,2]
[359431764,1746010246102,-717.26009904,0.00019886,2]
[359431765,1746010246116,-489.96490096,0.0002,2]
[359431766,1746010246558,-9466.89600001,0.0002,2]
[359431767,1746010246577,-4733.975624,0.0002,2]
[359431768,1746010406535,2016.77,0.00032877,60]
[359431769,1746010472276,-550.06725612,0.000199,2]
[359431772,1746010477383,-218.02481733,0.000199,2]
[359431805,1746010684160,-156.0,0.00019693,3]
[359431806,1746010684185,-44.0,0.00019753,2]
[359431807,1746010689558,-206.0,0.00019753,2]
[359431808,1746010780840,51806.76851257,0.000198,7]
[359431824,1746010905179,-153.23236294,0.00019685,2]
[359431825,1746010908943,-276.6296521,0.00019685,2]
[359431826,1746010920407,106.27371732,0.0001889,2]
[359431827,1746010920432,49.74628268,0.0001889,2]
[359431828,1746010920632,156.02,0.00028335,120]
[359431832,1746010999962,1197.18,0.00016978,2]
[359431833,1746011000176,1197.18,0.00019242,2]
[359431836,1746011039304,250.0,0.00019297,2]
[359431843,1746011158772,250.0,0.00017,2]
[359431844,1746011159873,300.0,0.00019,2]
[359431845,1746011186404,426.0,0.00032876,60]
[359431846,1746011247557,250.0,0.00018876,2]
[359431861,1746011387516,500.0,0.00018879,2]
[359431862,1746011391989,1000.0,0.00018879,2]
[359431864,1746011432337,-1397.713402,0.00019402,2]
[359431865,1746011432347,-276.6296521,0.000196,2]
[359431866,1746011432357,-1200.0,0.00019785,2]
[359431867,1746011432366,-300.0,0.00019785,2]
[359431868,1746011432376,-290.43142171,0.00019786,2]
[359431869,1746011432387,-5764.83045,0.00019786,2]
[359431870,1746011432398,-3332.6871248,0.00019786,2]
[359431871,1746011432408,-3112.05100349,0.00019786,2]
[359431872,1746011432418,-1317.4531009,0.00019786,2]
[359431873,1746011432427,-2990.47115561,0.00019794,2]
[359431874,1746011432438,-1244.15535,0.00019794,2]
[359431875,1746011432449,-5789.74247042,0.00019794,2]
[359431995,1746011438318,-2475.63102397,0.00019794,2]
[359431996,1746011438328,-1317.45310084,0.00019799,2]
[359431997,1746011438338,-12500.0,0.00019803,2]
[359431998,1746011438347,-1317.45310084,0.00019811,2]
[359431999,1746011438356,-12500.0,0.00019812,2]
[359432000,1746011438366,-12500.0,0.00019821,2]
[359432001,1746011438375,-1317.45310084,0.00019824,2]
[359432002,1746011438384,-3672.97658663,0.0001983,2]
[359432003,1746011438395,-8827.02341337,0.0001983,2]
[359432004,1746011438405,-1317.45310084,0.00019837,2]
[359432005,1746011438414,-12500.0,0.00019838,2]
[359432006,1746011438423,-12319.71284082,0.00019847,2]
[359432007,1746011438435,-180.28715918,0.00019847,2]
[359432008,1746011438444,-156.27292185,0.00019849,2]
[359432009,1746011438583,-1161.18017899,0.00019849,2]
[359432010,1746011438592,-4186.99774221,0.00019856,2]
[359432017,1746011440616,-1469.52906931,0.00019856,2]
[359432018,1746011440773,-1027.8865036,0.00019856,2]
[359432019,1746011440940,-92.90057299,0.000195,2]
[359432020,1746011440984,-248.56123857,0.000195,2]
[359432021,1746011440994,-772.04789333,0.00019856,2]
[359432022,1746011441038,-5043.53879155,0.00019856,2]
[359432023,1746011441048,-1317.45310084,0.00019862,2]
[359432024,1746011441057,-12500.0,0.00019865,2]
[359432025,1746011441067,-500.0,0.00019873,2]
[359432026,1746011441077,-500.0,0.00019873,2]
[359432027,1746011441087,-12500.0,0.00019874,2]
[359432028,1746011441097,-1317.45310084,0.00019875,2]
[359432029,1746011441106,-12500.0,0.00019882,2]
[359432030,1746011441116,-509.9115,0.00019886,2]
[359432031,1746011441126,-1317.45310084,0.00019887,2]
[359432032,1746011441135,-10444.70792182,0.00019891,2]
[359432033,1746011441147,-2055.29207818,0.00019891,2]
[359432034,1746011441157,-740.20330167,0.00019895,2]
[359432035,1746011441166,-500.0,0.00019899,2]
[359432036,1746011441175,-500.0,0.00019899,2]
[359432037,1746011441185,-500.0,0.00019899,2]
[359432038,1746011441194,-500.0,0.00019899,2]
[359432039,1746011441203,-500.0,0.00019899,2]
[359432040,1746011441213,-500.0,0.00019899,2]
[359432041,1746011441224,-500.0,0.00019899,2]
[359432042,1746011441236,-500.0,0.00019899,2]
[359432043,1746011441245,-500.0,0.00019899,2]
[359432044,1746011441254,-466.00063671,0.00019899,2]
[359432045,1746011441264,-500.0,0.00019899,2]
[359432046,1746011441275,-1000.0,0.000199,2]
[359432047,1746011441284,-283.32101808,0.000199,2]
[359432048,1746011441293,-12500.0,0.000199,2]
[359432049,1746011441303,-4899.58287871,0.000199,2]
[359432050,1746011441314,-1317.45310084,0.000199,2]
[359432051,1746011441323,-4231.9079,0.000199,2]
[359432052,1746011441333,-166.29377324,0.000199,2]
[359432053,1746011441342,-207.4,0.00019953,2]
[359432054,1746011441351,-187.10541319,0.00019954,2]
[359432055,1746011441360,-151.0,0.00019954,2]
[359432056,1746011441370,-500.0,0.00019973,2]
[359432057,1746011441379,-500.0,0.00019973,2]
[359432058,1746011441390,-5671.8985142,0.00019986,2]
[359432059,1746011441400,-2336.5773123,0.00019986,2]
[359432060,1746011441409,-6024.6957123,0.00019986,2]
[359432061,1746011441419,-62118.5470287,0.00019986,2]
[359432062,1746011441428,-1816.0,0.0002,2]
[359432063,1746011441439,-78058.57063254,0.0002,2]
[359432083,1746011443500,-2451.938759,0.0002,2]
[359432084,1746011443710,-205951.35463436,0.0002,2]
[359432085,1746011443720,-3950.0,0.0002,2]
[359432086,1746011443735,-1251.74832259,0.0002,2]
[359432087,1746011443746,-11842.65790871,0.0002,2]
[359432088,1746011443755,-1010.00562334,0.0002,2]
[359432089,1746011443767,-1761.28932056,0.0002,2]
[359432090,1746011443776,-88944.72839047,0.0002,2]
[359432091,1746011443786,-1500.0,0.0002,2]
[359432092,1746011443796,-100000.0,0.0002,2]
[359432093,1746011443806,-266.93514752,0.0002,2]
[359432094,1746011443816,-170.45734896,0.0002,2]
[359432095,1746011443825,-1000.00009499,0.0002,2]
[359432096,1746011443834,-1486350.82320854,0.0002,2]
[359432098,1746011446275,-1790.025,0.0002,2]
[359432099,1746011446590,-5676.54905495,0.0002,2]
[359432120,1746011630107,154.50317233,0.00032876,60]
[359432122,1746011734186,366.57822159,0.0003287,60]
[359432134,1746012060022,1190.41,0.00017745,2]
[359432139,1746012143172,1000.0,0.00032876,60]
[359432140,1746012289405,-163.0922284,0.00019401,2]
[359432141,1746012297687,400.18470492,0.0002,120]
[359432153,1746012515633,1000.0,0.00019201,2]
[359432168,1746012631576,-86.9077716,0.00019401,2]
[359432169,1746012631586,-169.97,0.00019463,2]
[359432170,1746012631596,-152.45,0.00019529,2]
[359432171,1746012631607,-1000.0,0.000196,2]
[359432172,1746012631616,-64.41647164,0.000196,2]
[359432173,1746012631639,-1929.88700768,0.000196,2]
[359432174,1746012631688,-14251.8,0.000196,2]
[359432175,1746012631699,-663.23,0.000196,2]
[359432176,1746012631710,-20840.10829769,0.000196,2]
[359432189,1746012637557,-6656.98,0.000196,2]
[359432190,1746012637570,-3053.96448018,0.000196,2]
[359432191,1746012637581,-1200.0,0.00019699,2]
[359432192,1746012637590,-300.0,0.00019699,2]
[359432193,1746012637600,-1000.0,0.000197,2]
[359432194,1746012637611,-651.34114735,0.000197,2]
[359432195,1746012637648,-348.65885265,0.000197,2]
[359432196,1746012637658,-1000.0,0.000197,2]
[359432197,1746012637667,-1027.0,0.000197,2]
[359432198,1746012637677,-1000.0,0.000197,2]
[359432199,1746012637686,-1000.0,0.000197,2]
[359432200,1746012637696,-1000.0,0.000197,2]
[359432201,1746012637705,-8250.49609957,0.00019732,2]
[359432202,1746012637716,-334.16513696,0.00019732,2]
[359432203,1746012637729,-6610.13328709,0.00019732,2]
[359432204,1746012637775,-281.78651295,0.00019732,2]
[359432378,1746012639739,-5168.98567199,0.00019732,2]
[359432384,1746012639794,-2768.10488298,0.00019732,2]
[359432396,1746012639903,-486.32840846,0.00019732,2]
[359432398,1746012639912,-719.03161795,0.00019795,2]
[359432400,1746012639924,-280.96838205,0.00019795,2]
[359432402,1746012639934,-3340.6950321,0.00019799,2]
[359432404,1746012639944,-500.0,0.00019808,2]
[359432406,1746012639953,-585.94,0.00019863,2]
[359432408,1746012639963,-242.84658696,0.000199,2]
[359432410,1746012639973,-2500.0,0.000199,2]
[359432412,1746012639982,-153.03753552,0.000199,2]
[359432414,1746012639992,-166.29377324,0.000199,2]
[359432416,1746012640001,-207.4,0.00019953,2]
[359432418,1746012640011,-151.0,0.00019954,2]
[359432420,1746012640020,-581.0647455,0.00019973,2]
[359432422,1746012640029,-995.496,0.00019973,2]
[359432423,1746012640042,-174.093,0.00019973,2]
[359432425,1746012640051,-2124.3895902,0.00019986,2]
[359432427,1746012640061,-4557.87929466,0.00019986,2]
[359432430,1746012640072,-495.68719811,0.00019986,2]
[359432432,1746012640085,-1358.89812877,0.00019986,2]
[359432434,1746012640100,-921.54312845,0.00019986,2]
[359432436,1746012640111,-500.0,0.00019986,2]
[359432459,1746012640320,-4755.6,0.00019986,2]
[359432461,1746012640331,-63057.28050511,0.00019986,2]
[359432463,1746012640340,-5156.8257967,0.00019986,2]
[359432465,1746012640350,-500.0,0.00019999,2]
[359432467,1746012640360,-500.0,0.00019999,2]
[359432469,1746012640370,-598.18372447,0.00019999,2]
[359432471,1746012640379,-500.0,0.00019999,2]
[359432473,1746012640389,-500.0,0.00019999,2]
[359432475,1746012640398,-500.0,0.00019999,2]
[359432477,1746012640407,-580.20193136,0.00019999,2]
[359432478,1746012640417,-500.0,0.00019999,2]
[359432481,1746012640426,-500.0,0.00019999,2]
[359432482,1746012640435,-500.0,0.00019999,2]
[359432484,1746012640445,-500.0,0.00019999,2]
[359432486,1746012640456,-1637.0,0.0002,2]
[359432488,1746012640467,-154133.75652717,0.0002,2]
[359432706,1746012642567,-644.14637496,0.0002,2]
[359432720,1746012642727,-9396.53724825,0.0002,2]
[359432721,1746012642738,-4333.98921527,0.0002,2]
[359432722,1746012642750,-279.69148151,0.0002,2]
[359432723,1746012642835,-2143.34183672,0.00019799,2]
[359432834,1746012848226,413.76859247,0.00032876,60]
[359432837,1746012916083,2192.0,0.00032877,60]
[359432838,1746012969786,250.0,0.00017,2]
[359432839,1746012970849,300.0,0.00019,2]
[359432843,1746013067794,508.2502,0.000274,120]
[359432844,1746013068093,508.2502,0.000316,120]
[359432845,1746013079579,508.25,0.000316,120]
[359432846,1746013079908,508.25,0.000319,120]
[359432847,1746013080255,508.25,0.000322,120]
[359432848,1746013080550,508.25,0.000325,120]
[359432849,1746013080892,508.25,0.000328,120]
[359432850,1746013101571,1188.06,0.00017767,2]
[359432855,1746013293680,163.85,0.00018824,2]
[359432857,1746013445233,250.0,0.00018824,2]
[359432858,1746013470644,262.45,0.00032876,120]
[359432859,1746013538409,4000.0,0.00032877,60]
[359432861,1746013615085,-150.0,0.00019589,2]
[359432862,1746013615105,-300.0,0.00019601,2]
[359432863,1746013615123,-300.0,0.00019607,2]
[359432864,1746013615143,-1200.0,0.00019609,2]
[359432865,1746013615161,-300.0,0.00019609,2]
[359432866,1746013615179,-187.7849333,0.00019609,2]
[359432867,1746013615198,-2185.5535628,0.0001961,2]
[359432869,1746013653900,663.57371732,0.00018829,2]
[359432870,1746013653925,336.42628268,0.00018829,2]
[359432871,1746013655425,4377.25,0.00018847,2]
[359432875,1746013747595,543.964397,7.945e-05,2]
[359432882,1746013831654,-1200.0,0.00019609,2]
[359432883,1746013831663,-300.0,0.00019609,2]
[359432884,1746013831673,-21714.4464372,0.0001961,2]
[359432885,1746013831683,-200.0,0.00019611,2]
[359432886,1746013831694,-250.0,0.00019611,2]
[359432887,1746013831703,-300.0,0.00019612,2]
[359432888,1746013831713,-300.0,0.00019617,2]
[359432889,1746013831723,-300.0,0.00019622,2]
[359432890,1746013831733,-300.0,0.00019627,2]
[359432891,1746013831743,-300.0,0.00019632,2]
[359432892,1746013831752,-300.0,0.00019638,2]
[359432893,1746013831762,-300.0,0.00019643,2]
[359432894,1746013831772,-300.0,0.00019648,2]
[359432895,1746013831781,-300.0,0.00019653,2]
[359432896,1746013831791,-300.0,0.00019658,2]
[359432897,1746013831801,-300.0,0.00019663,2]
[359432898,1746013831811,-300.0,0.00019668,2]
[359432899,1746013831822,-300.0,0.00019674,2]
[359432900,1746013831833,-300.0,0.00019679,2]
[359432901,1746013831843,-300.0,0.00019684,2]
[359432902,1746013831853,-300.0,0.00019689,2]
[359432903,1746013831863,-300.0,0.00019694,2]
[359432904,1746013831872,-300.0,0.00019699,2]
[359432905,1746013831882,-262.72016277,0.00019799,2]
[359432906,1746013831891,-2243.8876583,0.00019799,2]
[359432907,1746013831901,-500.0,0.00019808,2]
[359432908,1746013831911,-280.87424643,0.0001989,2]
[359432909,1746013831921,-1000.0,0.000199,2]
[359432910,1746013831930,-13003.3413,0.000199,2]
[359432911,1746013831939,-208.15421736,0.000199,2]
[359432912,1746013831950,-1813.18545203,0.000199,2]
[359432913,1746013831959,-3912.84957884,0.000199,2]
[359432914,1746013831970,-166.29377324,0.000199,2]
[359432915,1746013831980,-500.0,0.00019945,2]
[359432916,1746013831989,-207.4,0.00019953,2]
[359432917,1746013831999,-151.0,0.00019954,2]
[359432918,1746013832010,-486.31580339,0.00019973,2]
[359432919,1746013832022,-500.0,0.00019973,2]
[359432920,1746013832032,-507.0,0.00019973,2]
[359432922,1746013832043,-796.397,0.00019985,2]
[359432924,1746013832052,-174.09380372,0.00019985,2]
[359432926,1746013832061,-1470.5361118,0.00019986,2]
[359432928,1746013832071,-360.1211222,0.00019986,2]
[359432930,1746013832080,-4133.68314705,0.00019986,2]
[359432936,1746013832132,-502.20959762,0.00019986,2]
[359432938,1746013832147,-637.73503681,0.00019986,2]
[359432940,1746013832159,-271.414428,0.00019986,2]
[359432943,1746013832170,-295.80682,0.00019986,2]
[359432945,1746013832181,-1716.80885001,0.00019986,2]
[359432949,1746013832197,-7584.80622634,0.00019986,2]
[359432954,1746013832212,-518.32839176,0.00019986,2]
[359432957,1746013832223,-582.9064706,0.00019986,2]
[359432960,1746013832234,-321.29154664,0.00019986,2]
[359432963,1746013832245,-415.32026094,0.00019986,2]
[359432966,1746013832255,-665.7554,0.00019986,2]
[359432969,1746013832266,-1796.10896561,0.00019986,2]
[359432971,1746013832277,-787.72537109,0.00019986,2]
[359432973,1746013832288,-593.35042861,0.00019986,2]
[359432975,1746013832298,-1280.86813107,0.00019986,2]
[359432977,1746013832310,-34805.72266115,0.00019986,2]
[359432979,1746013832319,-3879.5269271,0.00019986,2]
[359432981,1746013832328,-163.12,0.0001999,2]
[359432983,1746013832337,-163.12,0.0001999,2]
[359432985,1746013832346,-163.12,0.0001999,2]
[359432986,1746013832355,-163.12,0.0001999,2]
[359432988,1746013832364,-163.12,0.0001999,2]
[359432990,1746013832373,-163.12,0.0001999,2]
[359432992,1746013832382,-1000.0,0.00019999,2]
[359432994,1746013832390,-1000.0,0.00019999,2]
[359432995,1746013832398,-1000.0,0.00019999,2]
[359432997,1746013832407,-346.82754175,0.00019999,2]
[359433000,1746013837642,-54.98873378,0.00019999,2]
[359433001,1746013837652,-769.94612573,0.0002,2]
[359433002,1746013837663,-611.70497818,0.0002,2]
[359433003,1746013837675,-84.34889609,0.0002,2]
[359433004,1746013837685,-629.31208419,0.0002,2]
[359433005,1746013837700,-2813.57906416,0.0002,2]
[359433006,1746013837711,-28598.64623461,0.0002,2]
[359433007,1746013837722,-1469.70287535,0.0002,2]
[359433008,1746013837748,-213361.46512492,0.0002,2]
[359433009,1746013837759,-355.44831541,0.0002,2]